Cogmind - Beta 14 @@@ ROGUE MODE // 2025.03.12 @ 21:01:00 Player: Skergy Result: Destroyed by G-67 Veteran with Plasma Rifle Performance ------------- Evolutions (6) 3000 Regions Visited (11) 2200 Robots Destroyed (108) 540 Value Destroyed (5649) 5649 Prototype IDs (18) 360 Alien Tech Used (0) 0 Bonus (2823) 2823 TOTAL SCORE: 14572 Bonus ------- High Alert Combat Kills 768 Follower Combat Kills 1438 Registered with UFD 300 Met R17 at Cetus 500 Friendly Fire -183 Cogmind --------- Core Integrity 0/1150 Matter 139/300 Energy 33/100 System Corruption 14% Temperature Cool (12) Movement Core (150) Ox2 Location -4/Factory Parts ------- > --- POWER (2) -------- (None) > --- PROPULSION (6) --- (None) > --- UTILITY (8) ------ Advanced Power Amplifier Core Analyzer Improved Weapon Cycler Advanced ECM Suite Hacking Suite > --- WEAPON (3) ------- (None) > --- INVENTORY (5) ---- Advanced Thermal Generator Micro-nuke Launcher DRS Beacon (Ready) Peak State ------------ > --- POWER ------------ Quantum Reactor Quantum Reactor > --- PROPULSION ------- Centrium Heavy Treads Centrium Heavy Treads Centrium Heavy Treads > --- UTILITY ---------- Advanced Cooling System Large Storage Unit Advanced Signal Interpreter Advanced Targeting Computer Centrium Medium Armor Plating Centrium Medium Armor Plating Medium Reflective Plating Hacking Suite > --- WEAPON ----------- Heavy Gatling Laser Quantum Rifle Mass Driver > --- INVENTORY -------- Quantum Reactor Improved Medium Treads Advanced Heat Sink Matter Compressor Advanced Sensor Array Core Analyzer Improved Weapon Cycler Advanced ECM Suite Heavy Wave Gun Flail Vortex Trap DRS Beacon [Rating: 139] Favorites ----------- Power Improved Ion Engine Engine Improved Ion Engine Power Core Neutrino Core Reactor Quantum Reactor Propulsion Aluminum Leg Treads Centrium Heavy Treads Leg Aluminum Leg Wheel Compact Wheel Flight Unit Cesium-ion Thruster Utility Large Storage Unit Device V3-11A's Pendant Storage Large Storage Unit Processor Advanced Signal Interpreter Hackware Hacking Suite Protection Gun Armor Weapon Assault Rifle Energy Gun Dispersion Rifle Ballistic Gun Assault Rifle Ballistic Cannon Mass Driver Launcher Subdweller Shrapnel Launcher Special Weapon Mining Laser Impact Weapon Flail Special Melee Weapon Improved Datajack Build | -11 -10 -10 -9 -9 -6 -5 -5 -5 -5 -5 -4 ------- Run | Yrd Mat Sub Rec Scr Fac Fac Ext Cet Arc Hub Fac Slots Evolved 12 | . . . . . 8 2 . . . . 2 Power 1 | . . . . . 1 . . . . . . Propulsion 4 | . . . . . 2 . . . . . 2 Utility 6 | . . . . . 5 1 . . . . . Weapon 1 | . . . . . . 1 . . . . . Parts Attached 152 | 6 2 17 2 7 19 16 30 7 3 4 39 Power 21 | 1 1 1 1 . 3 2 6 2 . . 4 Engine 8 | 1 1 1 1 . 2 1 1 . . . . Core 9 | . . . . . 1 1 5 . . . 2 Reactor 4 | . . . . . . . . 2 . . 2 Propulsion 42 | 2 . 7 1 2 5 3 14 3 . . 5 Treads 20 | 2 . 1 . . . . 9 3 . . 5 Leg 14 | . . 4 1 2 3 . 4 . . . . Wheel 6 | . . 2 . . . 3 1 . . . . Hover . | . . . . . . . . . . . . Flight 2 | . . . . . 2 . . . . . . Utility 50 | 1 1 1 . 2 8 8 4 2 2 3 18 Device 28 | . . 1 . . 6 5 1 . 2 1 12 Storage 2 | 1 1 . . . . . . . . . . Processor 5 | . . . . . 1 2 1 . . . 1 Hackware 1 | . . . . . . 1 . . . . . Protection 14 | . . . . 2 1 . 2 2 . 2 5 Artifact . | . . . . . . . . . . . . Weapon 39 | 2 . 8 . 3 3 3 6 . 1 1 12 Energy Gun 10 | . . . . . . . . . 1 1 8 Energy Cannon . | . . . . . . . . . . . . Ballistic Gun 9 | 2 . 2 . 2 2 . 1 . . . . Ballistic Cannon 10 | . . 1 . 1 1 1 4 . . . 2 Launcher 4 | . . 1 . . . 1 . . . . 2 Special Weapon 4 | . . 4 . . . . . . . . . Impact Weapon 1 | . . . . . . 1 . . . . . Slashing Weapon . | . . . . . . . . . . . . Piercing Weapon . | . . . . . . . . . . . . Special Melee Weapon 1 | . . . . . . . 1 . . . . Unidentified Prototypes 6 | . . 1 . 1 . . . 2 . . 2 Corrupted Parts 1 | . . . . . . . . . . . 1 System Corruption 4 | . . . . . . . . . . . 4 Parts Lost 58 | . . 2 . . 7 4 11 1 2 1 30 Power 8 | . . . . . 1 1 1 . . . 5 Propulsion 15 | . . 1 . . 3 1 3 1 . . 6 Utility 17 | . . . . . 1 1 2 . 1 . 12 Weapon 18 | . . 1 . . 2 1 5 . 1 1 7 Highest Loss Streak 11 | . . 1 . . 5 2 6 1 2 1 11 To Critical Strikes 1 | . . . . . . . . 1 . . . Average Slot Usage (%) 89 | . 96 99 100 82 85 87 93 88 88 88 80 Engine 9 | . 14 14 14 11 8 8 2 . . . . Core 1 | . . . . . 2 1 7 1 . . 2 Reactor 1 | . . . . . . . . 9 11 11 6 Treads 6 | . 28 1 . . . . 12 11 11 11 16 Leg 15 | . . 25 28 23 20 6 4 . . . . Wheel 1 | . . 1 . . . 12 3 . . . . Device 7 | . . 11 14 2 15 15 9 5 5 5 12 Storage 11 | . 24 16 14 11 5 5 5 5 5 5 3 Processor 2 | . . . . . 5 6 10 11 11 11 8 Hackware 1 | . . . . . . 2 5 5 5 5 5 Protection 5 | . . . . 8 6 5 8 17 17 17 8 Ballistic Gun 12 | . 28 16 14 12 8 9 5 5 . . . Ballistic Cannon 3 | . . 1 . 1 6 7 13 11 11 10 3 Special Weapon 5 | . . 8 14 10 . . . . . . . Peak Build Rating 139 | 6 8 12 16 33 68 73 84 119 120 125 139 Average Rating 42 | 4 7 11 13 22 62 67 79 114 117 121 123 On Entrance 53 | . 6 8 12 16 33 65 63 84 119 120 121 Naked Turns . | . . . . . . . . . . . . Heaviest Build 105 | 14 34 40 31 42 72 82 89 99 99 103 105 Greatest Support 240 | 40 40 40 30 36 59 48 106 160 160 160 240 Greatest Overweight (x) 6 | . . 1 1 1 4 6 5 1 . . 2 Average Overweight (x) . | . . . 1 . 1 1 . . . . . Largest Inventory Capacity 15 | 8 15 15 15 15 15 15 15 15 15 15 15 Average Capacity 14 | 6 13 15 15 15 15 15 15 15 15 15 11 Most Carried 15 | 4 13 15 15 15 15 15 15 15 15 15 15 Average Carried 13 | 2 10 14 14 14 12 13 14 14 13 14 10 Final Capacity 15 | 8 15 15 15 15 15 15 15 15 15 15 5 Final Carried 15 | 4 13 15 15 15 14 13 15 15 15 12 3 Class Distribution -------------------- 64% | Mutant 14% | Scavenger-Tank 8% | Gunner 5% | Skirmisher 3% | Scavenger-Gunner Dominant Class ---------------- Mutant | -10/Materials Mutant | -10/Subcaves Mutant | -9/Recycling Mutant | -9/Scraptown Skirmisher | -6/Factory Skirmisher | -5/Factory Gunner | -5/Extension Scavenger-Tank | -5/Cetus Scavenger-Tank | -5/Archives Scavenger-Tank | -5/Hub_04(d) Scavenger-Tank | -4/Factory Resources | -11 -10 -10 -9 -9 -6 -5 -5 -5 -5 -5 -4 ----------- Run | Yrd Mat Sub Rec Scr Fac Fac Ext Cet Arc Hub Fac Matter Collected 5686 | 206 404 294 20 70 371 389 1453 1092 208 338 841 Remotely . | . . . . . . . . . . . . Salvage Created 4378 | . 272 281 . . 220 294 599 303 132 626 1651 Parts 200 | . 20 24 . . 8 20 37 15 5 16 55 Haulers Intercepted . | . . . . . . . . . . . . Recyclers Shooed 3 | . 1 . . . 1 . . . . . 1 Parts Field Recycled . | . . . . . . . . . . . . Retrieved Matter . | . . . . . . . . . . . . Parts Self-Destructed 21 | . . 21 . . . . . . . . . Prevented . | . . . . . . . . . . . . Kills | -11 -10 -10 -9 -9 -6 -5 -5 -5 -5 -5 -4 ------- Run | Yrd Mat Sub Rec Scr Fac Fac Ext Cet Arc Hub Fac Combat Hostiles Destroyed 93 | . 6 8 . . 5 8 14 7 2 11 32 Melee 1 | . . . . . . . . . . . 1 Guns 46 | . 6 8 . . 4 2 2 3 . 4 17 Cannons 32 | . . . . . 1 3 12 4 2 7 3 AOE 11 | . . . . . . 3 . . . . 8 Classes Destroyed 16 | . 3 2 . . 2 2 1 1 . . 5 Worker 3 | . 1 . . . . 1 . . . . 1 Builder 4 | . . . . . . 2 2 . . . . Recycler 4 | . . . . . . 1 . . . 2 1 Watcher 3 | . 1 . . . . . 1 1 . . . Swarmer 16 | . . 2 . . 1 4 5 . . . 4 Saboteur 1 | . . . . . . . . . . . 1 Grunt 28 | . 6 . . . 2 . 2 2 . 6 10 Brawler 1 | . . . . . . . . . . . 1 Duelist 1 | . . . . . . . . . . . 1 Protector 1 | . . . . . . . . . . . 1 Sentry 14 | . . . . . 1 1 5 . 2 2 3 Hunter 11 | . . . . . . . . 2 . 3 6 Programmer 9 | . . . . . 1 3 . . . . 5 Behemoth 1 | . . . . . . . 1 . . . . Cetus Guard 3 | . . . . . . . . 3 . . . Subdweller 6 | . . 6 . . . . . . . . . Scrapoid 1 | . . . . . . . . . . . 1 Thug 1 | . . . . . . . 1 . . . . Best Kill Streak 9 | . 2 2 . . 2 7 5 2 1 9 6 Combat Bots Only 7 | . 2 2 . . 2 4 5 2 1 7 6 Max Kills in Single Turn 4 | . 1 1 . . 1 4 1 1 1 2 3 Gunslinging 1 | . . . . . . . . . . . 1 Exploded 3 | . . . . . . 2 . . . . 3 Melee 1 | . . . . . . . . . . . 1 Uniques/NPCs Destroyed . | . . . . . . . . . . . . Combat | -11 -10 -10 -9 -9 -6 -5 -5 -5 -5 -5 -4 -------- Run | Yrd Mat Sub Rec Scr Fac Fac Ext Cet Arc Hub Fac Hostile Shots Fired 858 | . 41 28 . . 91 56 118 23 29 87 385 Missed 223 | . 7 8 . . 22 19 31 6 7 14 109 Damage Taken 13800 | . 381 575 . . 1219 769 1907 376 592 1382 6599 Core 1859 | . 93 132 . . 95 78 165 . 24 122 1150 Absorbed by Shields . | . . . . . . . . . . . . Reduced by Siege Mode 392 | . . . . . . . . . 14 97 281 Ignored by Resistances 119 | . . . . . . . . . . 83 36 Regen/Repaired (Parts) 121 | . . . . . 7 47 67 . . . . Core Remaining (%) 64 | 100 . . . 10 88 . . . . 61 . Volleys Fired 319 | . 30 38 . . 35 22 41 30 11 23 89 Largest 4 | . 2 2 . . 3 4 4 3 3 3 3 Hottest 257 | . 40 100 . . 125 180 201 147 214 251 257 Shots Fired 801 | . 60 59 . . 86 56 135 90 32 67 216 Gun 432 | . 60 43 . . 51 23 42 30 10 24 149 Cannon 331 | . . . . . 35 30 93 60 22 43 48 Launcher 22 | . . . . . . 3 . . . . 19 Special 16 | . . 16 . . . . . . . . . Kinetic 588 | . 60 43 . . 86 56 135 90 27 43 48 Thermal 177 | . . 16 . . . . . . 5 24 132 Explosive 19 | . . . . . . . . . . . 19 Electromagnetic 17 | . . . . . . . . . . . 17 Robot Hit Streak 20 | . 9 7 . . 5 4 12 16 19 19 20 Robot Miss Streak 10 | . 2 3 . . 4 10 3 3 3 4 4 Penetration Max 1 | . . . . . 1 1 1 1 . 1 . Secondary Targets 6 | . 1 1 . . . . . . . . 4 Max Gunslinging Chain 1 | . 1 1 . . . . . . . . 1 Shots Hit Robots 506 | . 38 27 . . 42 26 93 58 27 47 148 Core Hits 257 | . 15 14 . . 13 16 38 23 11 36 91 Critical Kills 6 | . . . . . 1 . 1 1 . . 3 Critical Parts Destroyed 20 | . . . . . 4 . 11 1 . . 4 Critical Strikes 50 | . . . . . 5 2 20 6 2 4 11 Burn 3 | . . . . . . . . . . . 3 Destroy 29 | . . . . . 5 . 15 2 . . 7 Blast 18 | . . . . . . 2 5 4 2 4 1 Melee Attacks 10 | . . . . . . 4 6 . . . . Impact 4 | . . . . . . 4 . . . . . Slashing . | . . . . . . . . . . . . Piercing . | . . . . . . . . . . . . Sneak Attacks 6 | . . . . . . . 6 . . . . Combat Hostiles . | . . . . . . . . . . . . Follow-up Attacks . | . . . . . . . . . . . . Damage Inflicted 16128 | . 494 352 . . 713 1417 2462 1830 892 1858 6110 Guns 6729 | . 494 352 . . 261 206 756 592 313 829 2926 Cannons 6567 | . . . . . 452 706 1688 1238 579 1029 875 Explosions 2775 | . . . . . . 505 . . . . 2270 Melee . | . . . . . . . . . . . . Ramming 57 | . . . . . . . 18 . . . 39 Kinetic 9841 | . 494 352 . . 713 1417 2444 1830 687 1029 875 Thermal 3871 | . . . . . . . . . 205 829 2837 Explosive 2031 | . . . . . . . . . . . 2031 Electromagnetic 328 | . . . . . . . . . . . 328 Impact . | . . . . . . . . . . . . Slashing . | . . . . . . . . . . . . Piercing . | . . . . . . . . . . . . Highest Corruption 14 | . . . . . . 1 1 1 1 1 14 Average Corruption 2 | . . . . . . 1 1 1 1 1 9 Corruption Purged . | . . . . . . . . . . . . Corruption Blocked . | . . . . . . . . . . . . Effects 45 | . . . . . . 1 10 7 7 4 16 Message Errors 6 | . . . . . . . 2 . . . 4 Matter Fused 15 | . . . . . . 1 4 5 2 1 2 Heat Flow Errors 8 | . . . . . . . 1 . 1 1 5 Energy Discharges 3 | . . . . . . . 2 . . . 1 Data Loss (minor) 6 | . . . . . . . . . 2 2 2 Data Loss (major) 2 | . . . . . . . . 2 . . . Misfires 2 | . . . . . . . . . 1 . 1 Weapon Failures 3 | . . . . . . . 1 . 1 . 1 Overload Shots . | . . . . . . . . . . . . Overflow Damage 243 | . . . . . 21 53 23 11 5 26 104 Projectiles 128 | . . . . . 21 22 23 11 5 26 20 Explosions 115 | . . . . . . 31 . . . . 84 Melee . | . . . . . . . . . . . . Knockbacks 32 | . . . . . 9 . 7 1 . 8 7 Impact 1 | . . . . . . . . . . . 1 Kinetic 30 | . . . . . 9 . 7 1 . 7 6 Secondary 1 | . . . . . . . . . . 1 . Self-Inflicted Damage 36 | . . . . . . 36 . . . . . Shots 1 | . . . . . . 1 . . . . . Rammed 4 | . . . . . . . 2 . . . 2 Targets Rammed 4 | . . . . . . . 2 . . . 2 Kicked . | . . . . . . . . . . . . Crushed . | . . . . . . . . . . . . Highest Temperature 1125 | . 20 . . . 404 30 376 473 476 456 1125 Average Temperature 193 | . 6 . . . 181 13 131 118 169 179 268 Received Heat Transfer 2638 | . 234 72 . . 444 72 351 54 63 522 826 Effects 53 | . . . . . 7 . . 5 1 4 36 Shutdowns 10 | . . . . . 2 . . 1 1 . 6 Energy Bleed 6 | . . . . . 1 . . 1 . 1 3 Interference 13 | . . . . . 2 . . 3 . 3 5 Matter Decay 3 | . . . . . 1 . . . . . 2 Short Circuit 5 | . . . . . . . . . . . 5 Damage (minor) 9 | . . . . . 1 . . . . . 8 Damage (major) 2 | . . . . . . . . . . . 2 Damage (core) 5 | . . . . . . . . . . . 5 Siege Activations 11 | . . . . . . . . 1 2 2 6 Total Turns 248 | . . . . . . . . 17 20 72 139 Longest Duration 51 | . . . . . . . . 17 13 43 51 Robots Corrupted 1 | . . . . . . . . . . . 1 Combat Hostiles 1 | . . . . . . . . . . . 1 Parts Fried 4 | . . . . . . . . . . . 4 Impact Corruptions . | . . . . . . . . . . . . Robots Melted 2 | . . . . . . . . . . . 2 Combat Hostiles 2 | . . . . . . . . . . . 2 Parts Melted 11 | . . . . . . . . 1 . . 10 Heat Transferred 5436 | . . . . . . . . . 350 1375 3711 Parts Sabotaged 3 | . . . . . . . . . . . 3 Parts Stolen . | . . . . . . . . . . . . Parts Stripped . | . . . . . . . . . . . . Power Chain Reactions . | . . . . . . . . . . . . Alert | -11 -10 -10 -9 -9 -6 -5 -5 -5 -5 -5 -4 ------- Run | Yrd Mat Sub Rec Scr Fac Fac Ext Cet Arc Hub Fac Peak Influence 1130 | . 153 . 88 . 105 301 525 642 352 482 1130 Initial 235 | . . . 30 . . 46 147 208 182 53 235 Average 228 | . 19 . 44 . 33 69 386 455 319 187 524 Maximum Alert Level 4 | . . . . . . 1 2 2 1 2 4 Low Security (%) 52 | 100 100 . 100 . 100 90 3 . 11 52 . Level 1 21 | . . . . . . 9 55 23 88 30 26 Level 2 23 | . . . . . . . 41 76 . 17 55 Level 3 2 | . . . . . . . . . . . 16 Level 4 . | . . . . . . . . . . . . Level 5 . | . . . . . . . . . . . . High Security . | . . . . . . . . . . . . Max Security . | . . . . . . . . . . . . Squads Dispatched 30 | . 3 . . . 2 3 . 3 . 5 14 Investigation 11 | . 1 . . . . 1 . 3 . 2 4 Extermination 5 | . . . . . 1 1 . . . . 3 Reinforcement 8 | . 2 . . . 1 1 . . . 2 2 Assault 2 | . . . . . . . . . . . 2 Garrison 4 | . . . . . . . . . . 1 3 Intercept . | . . . . . . . . . . . . Searches Triggered . | . . . . . . . . . . . . Construction Impeded 2 | . . . . . . 1 . . . . 1 Haulers Reinforced 1 | . . . . . . . . . . 1 . Active Scanning Responses . | . . . . . . . . . . . . Cargo Convoy Interrupts . | . . . . . . . . . . . . Stealth | -11 -10 -10 -9 -9 -6 -5 -5 -5 -5 -5 -4 --------- Run | Yrd Mat Sub Rec Scr Fac Fac Ext Cet Arc Hub Fac Distress Signals 9 | . . . . . 2 1 2 2 . 2 . Communications Jammed . | . . . . . . . . . . . . Distress Signals . | . . . . . . . . . . . . Times Spotted 164 | . 9 16 2 . 11 14 20 17 4 22 49 Peak Tracking Total 8 | . 2 3 1 . 3 5 5 5 2 8 6 Tactical Retreats 8 | . 1 1 . . 1 2 . . . 2 1 Traps | -11 -10 -10 -9 -9 -6 -5 -5 -5 -5 -5 -4 ------- Run | Yrd Mat Sub Rec Scr Fac Fac Ext Cet Arc Hub Fac Traps Triggered 9 | . 1 4 . . . 2 1 . . . 1 Indirectly . | . . . . . . . . . . . . Trap Hack Attempts . | . . . . . . . . . . . . Triggered . | . . . . . . . . . . . . Disarmed . | . . . . . . . . . . . . Reprogrammed . | . . . . . . . . . . . . Reused . | . . . . . . . . . . . . Traps Extracted . | . . . . . . . . . . . . Installed 1 | . . . . . . . . . . . 1 Triggered . | . . . . . . . . . . . . Most Traps Carried 1 | . . . . 1 1 1 1 1 1 1 1 Machines | -11 -10 -10 -9 -9 -6 -5 -5 -5 -5 -5 -4 ---------- Run | Yrd Mat Sub Rec Scr Fac Fac Ext Cet Arc Hub Fac Machines Disabled 40 | . . 2 . . 3 1 2 2 2 3 25 Max in Single Turn 5 | . . . . . 1 1 1 1 1 1 5 Garrison Access 1 | . . . . . 1 . . . . . . Machines Repaired . | . . . . . . . . . . . . Machines Dismantled . | . . . . . . . . . . . . Machines Sabotaged . | . . . . . . . . . . . . Overloaded Fab Kills . | . . . . . . . . . . . . Hacking | -11 -10 -10 -9 -9 -6 -5 -5 -5 -5 -5 -4 --------- Run | Yrd Mat Sub Rec Scr Fac Fac Ext Cet Arc Hub Fac Machines Accessed 44 | . 3 1 4 6 7 5 7 3 1 3 4 Terminals 23 | . 1 . 3 . 3 4 7 3 . 2 . Fabricators 1 | . . . . . . 1 . . . . . Repair Stations . | . . . . . . . . . . . . Recycling Units 8 | . 2 . . . 3 . . . . . 3 Scanalyzers . | . . . . . . . . . . . . Garrison Access 3 | . . . . . 1 . . . . 1 1 Total Hacks 127 | . 7 3 15 26 18 9 15 9 9 7 9 Successful 80 | . 6 3 12 26 7 3 9 3 9 . 2 Failed 47 | . 1 . 3 . 11 6 6 6 . 7 7 Catastrophic 8 | . . . 1 . 2 2 . 1 . 1 1 Database Lockouts . | . . . . . . . . . . . . Manual 48 | . 7 . 8 . 11 5 5 . . 4 8 Terminals 64 | . 5 . 10 . 13 8 15 9 . 4 . Fabricators 1 | . . . . . . 1 . . . . . Repair Stations . | . . . . . . . . . . . . Recycling Units 10 | . 2 . . . 3 . . . . . 5 Scanalyzers . | . . . . . . . . . . . . Garrison Access 9 | . . . . . 2 . . . . 3 4 Terminal Hacks 61 | . 1 3 9 26 3 1 6 3 9 . . Record 46 | . . 3 5 25 1 . . 3 9 . . Part Schematic 1 | . . . 1 . . . . . . . . Prototype ID Bank 1 | . 1 . . . . . . . . . . Open Door 7 | . . . . . . 1 6 . . . . Emergency Access Points 1 | . . . . . 1 . . . . . . Registered Components 1 | . . . 1 . . . . . . . . Zone Layout 3 | . . . 2 . 1 . . . . . . Derelict Proto ID Bank 1 | . . . . 1 . . . . . . . Fabricator Hacks 1 | . . . . . . 1 . . . . . Network Status 1 | . . . . . . 1 . . . . . Repair Station Hacks . | . . . . . . . . . . . . Recycling Unit Hacks . | . . . . . . . . . . . . Scanalyzer . | . . . . . . . . . . . . Garrison Access Hacks 1 | . . . . . 1 . . . . . . Seal Access 1 | . . . . . 1 . . . . . . Unauthorized Hacks 17 | . 5 . 3 . 3 1 3 . . . 2 Terminals 13 | . 3 . 3 . 3 1 3 . . . . Track 4 | . 1 . 1 . 1 . 1 . . . . Assimilate 1 | . 1 . . . . . . . . . . Botnet 6 | . 1 . 2 . 1 1 1 . . . . Operators 2 | . . . . . 1 . 1 . . . . Fabricators . | . . . . . . . . . . . . Repair Stations 2 | . . . . . . . . . . . 2 Recycling Units 2 | . 2 . . . . . . . . . . Reject 2 | . 2 . . . . . . . . . . Fedlink 1 | . . . . . . . . . . . 1 Scrapoids 1 | . . . . . . . . . . . 1 Scanalyzers . | . . . . . . . . . . . . Garrison Access . | . . . . . . . . . . . . Data Cores Recovered . | . . . . . . . . . . . . Used . | . . . . . . . . . . . . Hacking Detections 23 | . 1 . 1 . 7 3 3 3 . 3 2 Full Trace Events 6 | . . . . . . . . 3 . 1 2 Feedback Events 1 | . . . . . . . . . . . 1 Corruption 1 | . . . . . . . . . . . 1 Feedback Blocked . | . . . . . . . . . . . . Robot Schematics Acquired . | . . . . . . . . . . . . Robots Built . | . . . . . . . . . . . . Authchips . | . . . . . . . . . . . . Time . | . . . . . . . . . . . . Total Robot Build Rating . | . . . . . . . . . . . . Part Schematics Acquired 1 | . . . 1 . . . . . . . . Parts Built . | . . . . . . . . . . . . Authchips . | . . . . . . . . . . . . Time . | . . . . . . . . . . . . Total Part Build Rating . | . . . . . . . . . . . . Parts Repaired . | . . . . . . . . . . . . Time . | . . . . . . . . . . . . Parts Recycled . | . . . . . . . . . . . . Recycled Matter . | . . . . . . . . . . . . Retrieved Matter . | . . . . . . . . . . . . Retrieved Components . | . . . . . . . . . . . . Parts Scanalyzed . | . . . . . . . . . . . . Part Schematics Acquired . | . . . . . . . . . . . . Parts Damaged . | . . . . . . . . . . . . Bothacking | -11 -10 -10 -9 -9 -6 -5 -5 -5 -5 -5 -4 ------------ Run | Yrd Mat Sub Rec Scr Fac Fac Ext Cet Arc Hub Fac Used RIF Installer . | . . . . . . . . . . . . Robots Hacked . | . . . . . . . . . . . . Non-combat . | . . . . . . . . . . . . Combat . | . . . . . . . . . . . . Robot Hacks Applied . | . . . . . . . . . . . . Relay Couplers Released . | . . . . . . . . . . . . Fabnet Peak Effective % . | . . . . . . . . . . . . Robots Rewired 10 | . . . . . . . 10 . . . . Allies Hacked . | . . . . . . . . . . . . Hacks Repelled . | . . . . . . . . . . . . Allies | -11 -10 -10 -9 -9 -6 -5 -5 -5 -5 -5 -4 -------- Run | Yrd Mat Sub Rec Scr Fac Fac Ext Cet Arc Hub Fac Total Allies 28 | . . 6 . . . . 17 . . . 5 Largest Group 12 | . . 5 4 3 3 . 12 7 1 1 5 Highest-Rated Group 334 | . . 96 76 57 57 . 334 214 39 39 238 Highest-Rated Ally 53 | . . 20 19 19 19 . 39 39 39 39 53 Total Orders 6 | . . . . . 5 . . 1 . . . AID 1 | . . . . . . . . 1 . . . EXPLORE 3 | . . . . . 3 . . . . . . RETURN 2 | . . . . . 2 . . . . . . Ally Attacks 262 | . . 34 22 . 16 . 73 85 5 1 26 Total Damage 5034 | . . 432 380 . 273 . 1317 1360 96 . 1176 Kills 41 | . . 6 4 . 1 . 14 9 2 . 5 Allies Corrupted . | . . . . . . . . . . . . Allies Melted . | . . . . . . . . . . . . Intel | -11 -10 -10 -9 -9 -6 -5 -5 -5 -5 -5 -4 ------- Run | Yrd Mat Sub Rec Scr Fac Fac Ext Cet Arc Hub Fac Robot Analysis Total . | . . . . . . . . . . . . Derelict Logs Recovered 6 | . . 2 . 4 . . . . . . . Drone Launches 5 | . . . . . 5 . . . . . . Drone Recoveries 5 | . . . . . 5 . . . . . . Exploration | -11 -10 -10 -9 -9 -6 -5 -5 -5 -5 -5 -4 ------------- Run | Yrd Mat Sub Rec Scr Fac Fac Ext Cet Arc Hub Fac Turns Passed 17509 | 62 1687 3915 756 5214 1114 605 1218 777 423 294 1444 Spaces Moved 8403 | 33 451 1862 387 2891 477 361 569 403 232 96 641 Core 13 | 2 . . . . . . . . . . 11 Treads 2269 | 31 451 78 . . . . 348 403 232 96 630 Legs 5400 | . . 1602 387 2891 477 41 2 . . . . Wheels 719 | . . 182 . . . 318 219 . . . . Hover . | . . . . . . . . . . . . Flight 2 | . . . . . . 2 . . . . . Fastest Speed 50 | 50 160 110 190 130 125 115 115 160 160 160 150 Average Speed 174 | 153 160 181 192 179 197 135 169 160 160 160 163 Slowest Speed 532 | 160 160 240 200 200 400 532 400 240 160 160 170 Overloaded Moves . | . . . . . . . . . . . . Propulsion Burnouts . | . . . . . . . . . . . . Robots Hopped . | . . . . . . . . . . . . Cave-ins Triggered . | . . . . . . . . . . . . Exploration Rate (%) 54 | 3 65 97 93 95 16 10 60 78 96 15 24 Regions Visited 11 Branch Regions 7 Pre-discovered Areas . | . . . . . . . . . . . . Known Exits Taken 6 | . . . . . 1 1 1 1 1 1 . Unknown Exits Taken 5 | 1 1 1 1 1 . . . . . . . Scrap Searched 11 | . . 5 . 6 . . . . . . . Spaces Dug 3 | . . . . . . 2 . . . . 1 Terrain Destroyed 299 | . . . . . 3 56 27 9 5 16 183 Melee 2 | . . . . . . 2 . . . . . Projectile 83 | . . . . . 3 10 27 9 5 16 13 AOE 214 | . . . . . . 44 . . . . 170 Terrain Rammed . | . . . . . . . . . . . . Walls Destroyed . | . . . . . . . . . . . . Machines Disabled . | . . . . . . . . . . . . Actions | -11 -10 -10 -9 -9 -6 -5 -5 -5 -5 -5 -4 --------- Run | Yrd Mat Sub Rec Scr Fac Fac Ext Cet Arc Hub Fac Total 10560 | 42 1356 2315 400 2926 574 429 729 473 259 181 876 Wait 1427 | . 866 363 4 5 31 1 6 13 11 57 70 Move 8392 | 32 450 1861 386 2890 476 360 568 402 231 95 641 Hop . | . . . . . . . . . . . . Pick Up 97 | 4 8 18 3 12 8 8 9 6 2 . 19 Fast Attach 42 | 6 1 3 . 1 6 2 9 2 . . 12 Attach 51 | . . 6 . 2 9 5 6 1 2 2 18 Detach 15 | . . 1 . . 2 3 2 2 . . 5 Swap 59 | . 1 8 2 4 4 9 15 4 1 2 9 Drop 85 | . . 17 5 12 3 7 15 13 1 2 10 Fire 319 | . 30 38 . . 35 22 41 30 11 23 89 Melee 10 | . . . . . . 4 6 . . . . Ram . | . . . . . . . . . . . . Kick . | . . . . . . . . . . . . Crush 4 | . . . . . . . 2 . . . 2 Escape Stasis 10 | . . . . . . 8 2 . . . . Rewire 48 | . . . . . . . 48 . . . . Trap 1 | . . . . . . . . . . . 1 Miscellaneous . | . . . . . . . . . . . . Route ------- -11/Scrapyard -10/Materials (discovered 4 exits: [*Mat x2] / [*Min] / *Sub) -10/Subcaves (discovered 3 exits: [*Mat x2] / *Rec) -9/Recycling (discovered 2 exits: [*Fac] / *Scr) -9/Scraptown (discovered 2 exits: *Fac x2) -6/Factory -5/Factory -5/Extension (discovered 3 exits: *Fac x2 / *Cet) -5/Cetus (discovered 3 exits: *Fac x2 / *Arc) -5/Archives (discovered 3 exits: *Fac / *Hub x2) -5/Hub_04(d) -4/Factory History --------- Turn | Location | Event 17 | -11/Scrapyard | Discovered new exit (range 14) 63 | -11/Scrapyard | Entered Materials 318 | -10/Materials | Build established: Mutant 324 | -10/Materials | Discovered new exit (range 14) 594 | -10/Materials | Discovered new exit (range 15) 766 | -10/Materials | Discovered new exit (range 9) 1723 | -10/Materials | Discovered new exit (range 9) 1750 | -10/Materials | Entered Subcaves 1750 | -10/Subcaves | Learned 4 Materials zone layouts 1845 | -10/Subcaves | Core integrity fell below 50% 1998 | -10/Subcaves | Learned 8 Materials zone layouts 2015 | -10/Subcaves | Visited Clippyterm 2019 | -10/Subcaves | Learned Factory trap positions 2140 | -10/Subcaves | A swath of the cavern ceiling suddenly collapsed 2347 | -10/Subcaves | Core integrity fell below 20% 2466 | -10/Subcaves | Discovered new exit (range 15) 2486 | -10/Subcaves | Visited triangular shrine 2498 | -10/Subcaves | Found Prototype Device 2498 | -10/Subcaves | Identified V3-11A's Pendant 2503 | -10/Subcaves | Befriended Subdweller 2824 | -10/Subcaves | Discovered new exit (range 7) 3578 | -10/Subcaves | Befriended Subdweller 3713 | -10/Subcaves | Befriended Subdweller 4680 | -10/Subcaves | A Subdweller sparked back to life 4680 | -10/Subcaves | A Subdweller sparked back to life 4683 | -10/Subcaves | Befriended Subdweller 4788 | -10/Subcaves | Befriended Subdweller 4788 | -10/Subcaves | Befriended Subdweller 5543 | -10/Subcaves | Discovered new exit (range 10) 5548 | -10/Subcaves | Found Prototype Protection 5665 | -10/Subcaves | Entered Recycling 5665 | -9/Recycling | Accompanied by 4 allies 6052 | -9/Recycling | Discovered new exit (range 7) 6371 | -9/Recycling | Scanned before Scraplab entrance 6399 | -9/Recycling | Entered Scraplab 6417 | -9/Recycling | Discovered new exit (range 3) 6421 | -9/Recycling | Entered Scraptown 6421 | -9/Scraptown | Accompanied by 3 allies 6619 | -9/Scraptown | Heard Great Nut preacher, LISTEN AND RECITE! 6841 | -9/Scraptown | Discovered new exit (range 7) 6932 | -9/Scraptown | Scanned Subdweller tech in exchange for log data 6935 | -9/Scraptown | Learned Research emergency access door positions 6936 | -9/Scraptown | Learned 8 Research zone layouts 6937 | -9/Scraptown | Learned Research stockpile data 6939 | -9/Scraptown | Learned Factory emergency access door positions 6974 | -9/Scraptown | Visited TADAMA 7014 | -9/Scraptown | Visited SPCMW 7070 | -9/Scraptown | Visited IN-MT5's Study 7209 | -9/Scraptown | Visited UFD Registry 7209 | -9/Scraptown | Registered with UFD as "Gravtube" 7229 | -9/Scraptown | Visited CPS Storage 7312 | -9/Scraptown | Delivered V3-11A's Pendant to T0-NE2 in exchange for information 7409 | -9/Scraptown | Visited Cave Peace 7459 | -9/Scraptown | Visited Shadow of the Wyrm 7591 | -9/Scraptown | Identified Gun Armor 7592 | -9/Scraptown | Attached Gun Armor, gained temporary slots: Weapon x2 7860 | -9/Scraptown | Visited Cartography Club 7950 | -9/Scraptown | Visited A0-MCA Data Center 7962 | -9/Scraptown | Given a B- rating by A0-MCA 7969 | -9/Scraptown | Found A0-MCA's Component Scanner 8048 | -9/Scraptown | Visited Derelict Rescue Squad 8060 | -9/Scraptown | Found DRS Beacon 8099 | -9/Scraptown | Visited Abandonware Association 8129 | -9/Scraptown | Learned abandonware demo "KABOOM.EXE" 8129 | -9/Scraptown | Learned abandonware demo "REBOOT5.EXE" 8191 | -9/Scraptown | Visited Science Guys 8431 | -9/Scraptown | Visited Research Penetration Think Tank 8473 | -9/Scraptown | Visited Curators Association 8535 | -9/Scraptown | Visited Scrapoid Pod Storage 8569 | -9/Scraptown | Visited DA-N13 Charitable Foundation 8593 | -9/Scraptown | Found DCF Scrap (29 items) 8634 | -9/Scraptown | Visited Chapter 10 8820 | -9/Scraptown | Delivered Scrap Shield to a Scientist 9995 | -9/Scraptown | Found Scrap Suit 11452 | -9/Scraptown | Build established: Gunner 11625 | -9/Scraptown | Discovered new exit (range 3) 11635 | -9/Scraptown | Entered Factory 11635 | -6/Factory | Accompanied by 3 allies 11635 | -6/Factory | Evolved 8 slots: Power x1, Propulsion x2, Utility x5 11636 | -6/Factory | Loaded intel: 124 trap records 12425 | -6/Factory | Build established: Skirmisher 12535 | -6/Factory | Lost 5 parts (3n2w) 12558 | -6/Factory | Discovered new exit (range 27) 12744 | -6/Factory | Identified exit to Factory 12749 | -6/Factory | Entered another Factory area 12749 | -5/Factory | Evolved 2 slots: Utility x1, Weapon x1 13349 | -5/Factory | Discovered new exit (range 6) 13353 | -5/Factory | Identified exit to Extension 13354 | -5/Factory | Entered Extension 13399 | -5/Extension | Disrupted transfer network 13587 | -5/Extension | Rescued a captive Derelict 13588 | -5/Extension | Rescued a captive Derelict 13683 | -5/Extension | Rescued a captive Derelict 13684 | -5/Extension | Rescued a captive Derelict 13688 | -5/Extension | Build established: Gunner 13757 | -5/Extension | Rescued a captive Derelict 13884 | -5/Extension | Rescued a captive Derelict 13920 | -5/Extension | Lost 4 allies 14000 | -5/Extension | Rescued a captive Derelict 14151 | -5/Extension | Lost 4 allies 14172 | -5/Extension | Spotted B-75 Beast 14199 | -5/Extension | Destroyed B-75 Beast 14228 | -5/Extension | Spotted B-75 Beast 14249 | -5/Extension | Allies destroyed B-75 Beast 14254 | -5/Extension | Lost 6 parts (2n1u3w) 14377 | -5/Extension | Discovered new exit (range 3) 14379 | -5/Extension | Identified exit to Factory 14540 | -5/Extension | Discovered new exit (range 16) 14544 | -5/Extension | Discovered exit to Factory (range 14) 14563 | -5/Extension | Identified exit to Cetus 14572 | -5/Extension | Entered Cetus 14572 | -5/Cetus | Accompanied by 7 allies 14593 | -5/Cetus | Spotted Cetus Guard 14593 | -5/Cetus | Spotted Cetus Guard 14599 | -5/Cetus | Spotted Cetus Guard 14599 | -5/Cetus | Allies destroyed Cetus Guard 14599 | -5/Cetus | Allies destroyed Cetus Guard 14600 | -5/Cetus | Spotted Cetus Guard 14605 | -5/Cetus | Allies destroyed Cetus Guard 14607 | -5/Cetus | Allies destroyed Cetus Guard 14681 | -5/Cetus | Build established: Scavenger-Tank 14848 | -5/Cetus | Discovered new exit (range 15) 14870 | -5/Cetus | Identified exit to Archives 14906 | -5/Cetus | Spotted Cetus Guard 14906 | -5/Cetus | Spotted Cetus Guard 14911 | -5/Cetus | Spotted Cetus Guard 14914 | -5/Cetus | Destroyed Cetus Guard 14927 | -5/Cetus | Destroyed Cetus Guard 14930 | -5/Cetus | Allies destroyed Cetus Guard 14931 | -5/Cetus | Spotted Cetus Guard 14953 | -5/Cetus | Destroyed Cetus Guard 14982 | -5/Cetus | Lost 5 allies 14991 | -5/Cetus | Discovered exit to Factory (range 15) 15001 | -5/Cetus | Met Revision 17 15183 | -5/Cetus | Discovered exit to Factory (range 15) 15267 | -5/Cetus | Cetus Manufacturing Module disabled 15322 | -5/Cetus | Security sweep announced 15349 | -5/Cetus | Entered Archives 15349 | -5/Archives | Accompanied by 1 ally 15440 | -5/Archives | Unable to access archive contents 15457 | -5/Archives | Unable to access archive contents 15464 | -5/Archives | Discovered exit to Factory (range 16) 15473 | -5/Archives | Unable to access archive contents 15480 | -5/Archives | Discovered new exit (range 14) 15489 | -5/Archives | Unable to access archive contents 15496 | -5/Archives | Discovered new exit (range 14) 15515 | -5/Archives | Identified exit to Hub_04(d) 15772 | -5/Archives | Entered Hub_04(d) 15772 | -5/Hub_04(d) | Accompanied by 1 ally 16003 | -5/Hub_04(d) | Garrison activated, responded to threat 16037 | -5/Hub_04(d) | Discovered exit to Factory (range 15) 16048 | -5/Hub_04(d) | Destroyed 7 combat bots 16066 | -5/Hub_04(d) | Entered Factory 16066 | -4/Factory | Evolved 2 slots: Propulsion x2 16541 | -4/Factory | Lost 4 parts (2u2w) 16816 | -4/Factory | First assault squad dispatched 16894 | -4/Factory | Scrapoid reinforcements arrived 16966 | -4/Factory | Lost 3 allies 17086 | -4/Factory | Lost 8 parts (1p1n4u2w) 17376 | -4/Factory | System corruption reached 10% 17394 | -4/Factory | Core integrity fell below 50% 17421 | -4/Factory | Core integrity fell below 20% 17510 | -4/Factory | Destroyed by G-67 Veteran with Plasma Rifle Last Messages --------------- 17480_ Acquired Hvy. Tesla Rifle. 17482_ R-10 Processor collects Propulsion Shielding. 17482_ Centrium Heavy Treads destroyed. 17483_ Acquired Dispersion Rifle. 17484_ Adv. Heat Sink destroyed. 17485_ Hvy. Siege Treads destroyed. 17487_ Dispersion Rifle destroyed. 17490_ FOBMSEATRV#C6FRC6IKS|RGOQMQW 17491_ Lyr. Light Armor Plating destroyed. 17492_ G-67 Veteran system terminally corrupted. 17492_ Adv. Heat Sink fried. 17492_ Lgt. Antimatter Reactor fried. 17492_ R-10 Processor collects Corrupted Flexi-carbon Leg. 17494_ Hvy. Tesla Rifle destroyed. 17494_ Neutrino Core destroyed. 17495_ R-10 Processor collects Cesium-ion Thruster. 17497_ R-10 Processor suffers critical hit (Burn). 17507_ G-67 Veteran IFF system glitched. 17509_ K-01 Serf collects debris. 17510_ System corrupted: Component data lost. Map ----- +----------------------------------------------------+ | ?????????????????????????????????????????????????? | | ?????????????????????????????????????????????????? | | ???????????????????? ???????????????? | | ???????????????????# #?????????????? | | ???????????????????# #?????????????? | | ####?????##????????# #?????????????? | | """" # ????????# ! #?????????????? | | """" # ?????# #?????????????? | | """" # """"""" # #?????????????? | | """" # """"""" # #?????????????? | | # """"""" # #??????????????? | | ! # """""""?# #??????????????? | | # ???# #??????????????? | | ?? ??# ?????# #??????????????? | | ####+######+########## # ####????????????? | | #??? ????????? | | #???"""??????? | | """#??"""" #???? | | Y"#??"""" #???? | | " """#? """" #???? | | ####+########## # """" #? #???? | | ?????????????# #k """" # #???? | | ???????????### "" """" # #???? | | ?????????? """" + #???? | | ?????????? """" g g ########?????? | | ????????? @ g #????????????? | | ????????# " """" """" #????????????? | | ????????# " """" """" #????????????? | | ????????# """" """" !#????????????? | | ????????? # """" """" #????????????? | | ??????????? # """"g""" #????????????? | | ?????????????? " """" """ % %" ???????????? | | ???????????????? ??"" """ # ?????????? | | ???????????????? ?????? # ???????? | | ???????????????? ???????? % #? ?????? | | ????????????????? ??????? " #? ???? | | ???????????????????????? "%" #?? ?? | | ????????????????????????#############??##########? | | ?????????????????????????????????????????????????? | | ?????????????????????????????????????????????????? | | ?????????????????????????????????????????????????? | | ?????????????????????????????????????????????????? | | ?????????????????????????????????????????????????? | | ?????????????????????????????????????????????????? | | ?????????????????????????????????????????????????? | | ?????????????????????????????????????????????????? | | ?????????????????????????????????????????????????? | | ?????????????????????????????????????????????????? | | ?????????????????????????????????????????????????? | | ?????????????????????????????????????????????????? | +----------------------------------------------------+ Best States ------------- Heat Dissipation 81 Energy Generation 45 Energy Capacity 600 Matter Stores 300 Matter Capacity 300 Sight Range 16 Robot Scan Range 16 Terrain Scan Density 10 ECM Strength 2 Power Amplification 30 Base Temperature (-) 150 Armor Coverage 1650 Resistance: TH 15 Weapon Cycling 20 Phase Shifting 10 Evasion (%) 55 Targeting Accuracy 8 Core Analysis 6 Recoil Reduction 6 Matter Filtering 30 Kinecelleration 30 Offensive Hacking 10 Item Schematics ----------------- Imp. Medium Armor Plating | -9/Recycling | Hacked Robot Schematics ------------------ None Fabricated ------------ Nothing Alien Tech Used ----------------- None Achievements -------------- Revising The Future Turtlemind Challenges ------------ None Game ------ Seed LightpackWarlordImmobilizer Manual? 0 Play Time 02:54:44 Cumulative 70.8 hours Start 2025.03.12 @ 17:58:07 End 2025.03.12 @ 21:01:00 Sessions 1 Manual Loads 0 Difficulty Rogue Special Mode None Game No. 74 Rogue 74 Adventurer 0 Explorer 0 Win Type - Total 2 Types 2/0/0/0/0/0/0/0/0 Lore% 42 Gallery% 45 Achievement% 40 Wizard Run 0 Options --------- Layout 0 ASCII 0 Keyboard 1 Movement Numpad Keybinds 0 Fullscreen 1 Font 24/Terminus Map View 76x50 Zoom Use 0% Tactical HUD 1 Map Filters NONE Filters NONE Steam 1 RUN: 513f8e67-30f8-4220-b6c9-18ca395304c8